bitfinex/quotes_ETHUSD_20250730
["timestamp","ask_amount","ask_price","bid_price","bid_amount"]
[1753859046307,1e-08,3833.9,3833.8,14.4514627]
[1753859048323,1e-08,3833.9,3833.8,19.2314627]
[1753859048738,1e-08,3833.9,3833.8,18.6814627]
[1753859049638,1e-08,3833.9,3833.8,19.2314627]
[1753859052201,0.002,3835.3,3835.2,5.60742594]
[1753859052202,1e-08,3835.3,3835.2,5.60742594]
[1753859052395,1e-08,3835.3,3835.2,9.57442594]
[1753859052727,1e-08,3835.3,3835.2,10.20052594]
[1753859053810,1e-08,3835.3,3835.2,9.70482594]
[1753859055047,1e-08,3835.3,3835.2,9.70982594]
[1753859055803,0.7819,3835.2,3833.8,2.60837811]
[1753859056001,0.7819,3835.2,3833.7,1.2927]
[1753859056002,1.45030846,3835.1,3833.7,1.2927]
[1753859056230,0.965,3835.0,3834.9,2.60756864]
[1753859056435,0.965,3835.0,3834.9,6.59256864]
[1753859056743,0.7819,3835.2,3834.9,6.59256864]
[1753859056944,1.2801,3835.2,3835.1,2.60749393]
[1753859057248,0.95659,3835.2,3833.9,5.60824425]
[1753859057445,0.7819,3835.2,3834.6,2.60778205]
[1753859057740,0.7589,3835.0,3833.8,0.8314]
[1753859057915,0.7589,3835.0,3832.5,2.60920503]
[1753859057916,3.10618459,3834.8,3833.9,3.988]
[1753859058238,0.965,3834.7,3834.0,3.988]
[1753859058423,0.7848,3834.6,3834.0,3.988]
[1753859058615,0.965,3834.5,3834.0,6.59623196]
[1753859058830,0.7848,3834.6,3834.1,2.60816271]
[1753859059031,0.965,3834.4,3834.2,3.99]
[1753859059207,1.283,3834.6,3834.4,2.60792877]
[1753859059408,1.2516,3834.6,3834.5,3.989]
[1753859060072,1.7498,3834.6,3834.5,3.989]
[1753859060252,1.7498,3834.6,3834.5,6.59690194]
[1753859061852,1.283,3834.6,3834.5,6.59690194]
[1753859062841,0.7848,3834.6,3834.5,6.59690194]
[1753859063354,1.283,3834.6,3834.5,6.59690194]
[1753859063535,1.7498,3834.6,3834.5,6.59690194]
[1753859065859,1.7498,3834.6,3834.5,6.72730194]
[1753859066434,1.7498,3834.6,3834.5,4.1194]
[1753859066839,1.92478,3834.6,3834.5,4.1194]
[1753859067156,1.92478,3834.6,3834.5,3.989]
[1753859070258,1.3235,3834.5,3833.3,6.267]
[1753859070568,0.7735,3834.1,3833.6,2.73891074]
[1753859070730,0.9039,3834.1,3833.7,3.987]
[1753859070929,0.9132,3834.0,3833.7,3.987]
[1753859071167,0.482,3833.9,3833.7,3.987]
[1753859071674,0.9039,3834.1,3833.7,3.987]
[1753859071847,0.9132,3833.8,3833.6,0.1304]
[1753859072040,0.9132,3833.8,3833.7,3.986]
[1753859072237,0.4312,3833.8,3833.7,3.986]
[1753859072435,0.4312,3833.8,3833.3,0.001]
[1753859072436,1.2104,3833.8,3833.3,0.001]
[1753859072747,0.7792,3833.5,3833.3,0.001]
[1753859073133,0.9132,3833.4,3833.3,0.001]
[1753859073380,1.0469728,3833.4,3833.3,0.001]
[1753859074131,1.8431728,3833.4,3833.3,0.001]
[1753859074334,2.3931728,3833.4,3833.3,0.001]
[1753859074599,3.07350854,3833.4,3833.3,0.001]
[1753859076684,5.68215882,3833.4,3833.3,0.001]
[1753859076836,3.07350854,3833.4,3833.3,0.001]
[1753859079474,5.68215882,3833.4,3833.3,0.001]
[1753859079981,5.92525557,3833.4,3833.3,0.001]
[1753859080277,3.07350854,3833.4,3833.3,0.001]
[1753859080681,5.68215882,3833.4,3833.3,0.001]
[1753859080885,3.07350854,3833.4,3833.3,0.001]
[1753859082285,3.31646641,3833.4,3833.3,0.001]
[1753859083585,5.92511669,3833.4,3833.3,0.001]
[1753859084174,3.31646641,3833.4,3833.3,0.001]
[1753859085269,7.30346641,3833.4,3833.3,0.001]
[1753859087185,3.31646641,3833.4,3833.3,0.001]
[1753859087386,7.30246641,3833.4,3833.3,0.001]
[1753859087627,6.38826641,3833.4,3833.3,0.001]
[1753859088688,2.40326641,3833.4,3833.3,0.001]
[1753859088883,6.38826641,3833.4,3833.3,0.001]
[1753859090092,2.26949361,3833.4,3833.3,0.001]
[1753859090290,0.1304,3833.4,3833.3,0.9484]
[1753859090589,3.984,3833.7,3833.3,0.9484]
[1753859090590,0.1304,3833.5,3833.3,0.9484]
[1753859090793,0.1304,3833.5,3833.4,0.9474]
[1753859091289,0.1304,3833.8,3833.4,0.9474]
[1753859091502,0.1304,3833.8,3833.5,0.9474]
[1753859091729,0.1304,3833.8,3833.5,3.55597704]
[1753859092016,0.1304,3833.8,3833.6,0.9474]
[1753859092312,0.1304,3833.8,3833.4,2.60862975]
[1753859092520,0.1304,3833.8,3833.7,0.9474]
[1753859093915,3.23658459,3833.8,3833.7,0.4917]
[1753859094082,3.69703003,3833.8,3833.5,0.4917]
[1753859094430,3.69703003,3833.8,3833.6,0.4917]
[1753859096313,0.24365165,3833.7,3833.6,0.4917]
[1753859096686,0.24365165,3833.7,3833.3,0.001]
[1753859096891,0.24365165,3833.7,3833.4,0.4917]
[1753859097115,0.24365165,3833.7,3833.5,0.4917]
[1753859097419,0.24365165,3833.7,3833.5,0.9474]
[1753859098419,0.24365165,3833.7,3833.5,0.4557]
[1753859098721,0.24365165,3833.7,3833.6,0.4917]
[1753859098937,0.61082891,3833.7,3833.3,0.4927]
[1753859099239,0.24365165,3833.6,3833.3,0.9484]
[1753859099429,0.24365165,3833.6,3833.4,0.4917]
[1753859100301,0.24365165,3833.6,3833.3,0.001]
[1753859100503,0.1304,3833.5,3833.3,0.001]
[1753859100703,0.37405165,3833.5,3833.3,0.4537]
[1753859100899,0.1304,3833.5,3833.3,0.4537]
[1753859101095,0.1304,3833.5,3833.3,0.001]
[1753859101443,0.9499,3833.5,3833.3,0.001]
[1753859101614,0.24407575,3833.4,3833.3,0.4507]
[1753859101931,0.1304,3833.5,3833.4,0.4497]
[1753859102131,0.1304,3833.5,3833.4,0.9024]
[1753859103201,0.24416635,3833.7,3833.4,0.9024]
[1753859103406,0.24416635,3833.6,3833.5,0.9024]
[1753859103622,0.1304,3833.9,3833.5,0.9024]
[1753859103623,0.24416635,3833.8,3833.5,0.9024]
[1753859103937,0.24416635,3833.8,3833.6,0.9024]
[1753859104137,0.24416635,3833.8,3833.4,2.60862828]
[1753859104438,0.24416635,3833.8,3833.7,0.9024]
[1753859104632,0.39074485,3833.8,3833.7,0.9024]
[1753859105239,0.39074485,3833.8,3833.7,3.51084614]
[1753859105440,0.24416635,3833.8,3833.7,3.51084614]
[1753859105817,0.24429472,3833.9,3833.8,2.60837811]
[1753859106162,0.24429472,3833.9,3833.8,3.51077811]
[1753859106163,0.39087147,3833.9,3833.8,3.51077811]
[1753859106572,0.39087147,3833.9,3833.8,4.33717811]
[1753859106882,0.24429467,3833.9,3833.8,4.33717811]
[1753859107083,0.24426869,3834.2,3833.9,2.6082727]
[1753859107249,0.24426863,3834.1,3833.9,2.6082727]
[1753859107446,0.1304,3834.3,3834.0,0.9024]
[1753859107677,0.24422885,3834.2,3834.0,0.4527]
[1753859108033,0.24422885,3834.2,3834.1,0.4527]
[1753859108261,0.3907662,3834.2,3834.1,0.9024]
[1753859110370,0.24422885,3834.2,3834.0,2.60818879]
[1753859110538,0.1304,3834.5,3834.1,0.9024]
[1753859110738,0.24415187,3834.4,3834.1,6.58416957]
[1753859111068,0.14649112,3834.3,3834.2,3.51050599]
[1753859111273,0.24415187,3834.3,3834.2,3.51050599]
[1753859111443,0.13270674,3835.0,3834.2,3.51050599]
[1753859111650,0.1304,3834.7,3834.5,2.60786413]
[1753859111851,4.7277,3835.2,3833.7,2.60840647]
[1753859111852,0.14647431,3834.8,3834.6,8.25813393]
[1753859112171,0.13040001,3835.3,3834.8,2.60769792]
[1753859112366,0.2439912,3835.2,3835.0,2.60749562]
[1753859112546,0.14639472,3835.1,3835.0,6.58449562]
[1753859112745,0.2439912,3835.1,3835.0,6.58449562]
[1753859112960,1e-08,3835.3,3835.2,2.60742594]
[1753859113357,0.24397361,3835.3,3835.2,3.50982594]
[1753859113557,0.24397361,3835.3,3835.2,4.27002594]
[1753859113761,0.1324,3835.7,3835.2,4.40042594]
[1753859113972,0.3252904,3836.0,3835.2,4.40042594]
[1753859113973,0.1324727,3836.0,3835.9,2.60695012]
[1753859114174,0.1324727,3836.0,3835.9,6.58495012]
[1753859114378,0.1324727,3836.0,3835.9,7.16505012]
[1753859114883,0.1304,3836.6,3835.9,7.16505012]
[1753859114884,3.10618459,3836.4,3835.9,4.5581]
[1753859115083,0.483,3836.3,3835.9,4.1084]
[1753859115288,0.483,3836.3,3836.0,3.05658114]
[1753859115578,0.1304,3836.4,3836.1,2.60675511]
[1753859115788,0.1304,3836.4,3836.1,3.05645511]
[1753859115955,0.1304,3836.4,3836.2,3.98]
[1753859116159,0.483,3836.3,3836.2,3.98]
[1753859116372,0.1304,3836.4,3836.2,3.98]
[1753859116568,0.1304,3836.4,3836.2,4.4297]
[1753859116775,0.1304,3836.4,3836.2,3.98]
[1753859116970,0.483,3836.3,3836.2,3.98]
[1753859117886,0.483,3836.7,3836.2,4.4297]
[1753859118187,0.1304,3836.5,3836.2,4.4297]
[1753859118576,0.483,3836.4,3836.3,3.978]
[1753859118887,0.6134,3836.4,3836.3,3.978]
[1753859119093,0.1304,3836.5,3836.3,4.4277]
[1753859119295,0.1304,3836.6,3836.4,3.05630921]
[1753859119457,0.6134,3836.7,3836.4,0.4497]
[1753859119655,1.09332539,3836.7,3836.4,0.4497]
[1753859119877,0.61032539,3836.7,3836.4,0.4497]
[1753859120151,0.483,3836.6,3836.3,3.978]
[1753859120374,0.61032539,3836.7,3836.3,3.978]
[1753859120375,0.1304,3836.7,3836.3,3.978]
[1753859120578,0.483,3836.6,3836.3,4.4277]
[1753859120890,0.483,3836.6,3836.4,0.4497]
[1753859121298,0.1304,3836.7,3836.3,3.978]
[1753859121467,0.483,3836.5,3836.3,3.978]
[1753859121670,0.1304,3836.7,3836.3,3.978]
[1753859121874,0.14498389,3836.9,3836.8,2.60633861]
[1753859122089,0.14498389,3836.9,3836.8,7.34993861]
[1753859122397,0.14498389,3836.9,3836.8,7.79963861]
[1753859122560,0.14498389,3836.9,3836.8,11.3585232]
[1753859122760,0.14498389,3836.9,3836.8,8.25233861]
[1753859123168,0.14498389,3836.9,3836.8,4.27333861]
[1753859123388,0.14498389,3836.9,3836.8,8.25433861]
[1753859123704,0.14498389,3836.9,3836.8,4.27333861]
[1753859124170,0.14498389,3836.9,3836.8,8.26133861]
[1753859124366,0.14498389,3836.9,3836.2,0.4527]
[1753859124570,0.62798389,3836.9,3836.3,5.2631]
[1753859124777,0.76945828,3836.9,3836.3,5.2631]
[1753859124976,0.483,3836.8,3836.4,3.989]
[1753859125162,0.483,3836.8,3836.5,3.989]
[1753859125359,0.483,3836.7,3836.6,3.989]
[1753859125809,0.28645828,3836.9,3836.6,3.989]
[1753859125979,0.28645828,3836.9,3836.7,3.989]
[1753859126305,0.483,3836.8,3836.3,3.05636702]
[1753859126463,0.483,3836.8,3836.3,2.60666702]
[1753859126663,0.483,3836.8,3836.4,0.4497]
[1753859126969,0.483,3836.8,3836.5,3.988]
[1753859127365,0.14498389,3836.9,3836.5,3.988]
[1753859127566,0.483,3836.7,3836.0,1.2666]
[1753859127885,0.55,3836.6,3835.7,1.2708]
[1753859128064,0.55,3836.3,3835.1,0.4497]
[1753859128266,0.55,3836.1,3835.2,3.99]
[1753859128529,0.7861,3836.2,3835.3,0.9024]
[1753859128662,0.7861,3836.2,3835.4,2.60727435]
[1753859128863,0.7861,3836.2,3835.5,2.60721198]
[1753859129092,0.7861,3836.2,3835.6,3.991]
[1753859129482,0.7861,3836.2,3835.7,0.4497]
[1753859129689,0.7861,3836.2,3835.6,3.991]
[1753859130004,1.2691,3836.2,3835.8,0.4497]
[1753859131372,0.4875,3836.1,3835.8,0.4497]
[1753859131596,0.4875,3836.1,3835.6,3.991]
[1753859131763,0.4875,3836.0,3835.6,4.5556]
[1753859132171,0.9165,3836.2,3835.6,4.5556]
[1753859132482,0.1304,3836.2,3835.7,0.4342]
[1753859132682,0.1304,3836.2,3835.8,0.4342]
[1753859132904,0.1304,3836.3,3835.8,0.1304]
[1753859133077,0.4875,3836.2,3835.9,0.4342]
[1753859133284,0.4875,3836.2,3836.0,3.988]
[1753859134406,0.5708,3836.3,3836.0,3.988]
[1753859134609,0.8281,3836.8,3836.1,0.4342]
[1753859134908,0.1304,3836.6,3836.1,1.057]
[1753859135107,0.1304,3836.6,3836.1,0.1304]
[1753859135306,0.14498389,3836.9,3836.2,0.9266]
[1753859135491,0.14498389,3836.9,3836.4,2.73700663]
[1753859135698,0.14498389,3836.9,3836.5,0.9266]
[1753859136000,0.14498389,3836.9,3836.6,6.59446286]
[1753859136209,0.14498389,3836.9,3836.7,0.9266]
[1753859136579,0.14498389,3836.9,3836.7,0.4342]
[1753859136772,0.63248389,3836.9,3836.6,3.988]
[1753859137102,0.4875,3836.8,3836.6,3.988]
[1753859137406,0.14498389,3836.9,3836.7,0.4342]
[1753859138707,0.14498389,3836.9,3836.8,0.4342]
[1753859138907,0.14498389,3836.9,3836.8,0.9266]
[1753859139594,0.14498389,3836.9,3836.8,3.53293861]
[1753859139780,0.14498389,3836.9,3836.8,4.31483861]
[1753859140111,0.14498389,3836.9,3836.8,4.44523861]
[1753859141585,0.14698389,3836.9,3836.8,4.44523861]
[1753859142398,0.14698389,3836.9,3836.8,8.43123861]
[1753859142600,0.14698389,3836.9,3836.2,0.814]
[1753859142788,0.4875,3836.8,3836.3,3.989]
[1753859142984,0.14698389,3836.9,3836.3,3.989]
[1753859143190,0.14698389,3836.9,3836.3,7.02981676]
[1753859143797,0.14698389,3836.9,3836.8,2.60633861]
[1753859144011,0.14698389,3836.9,3836.8,7.35833861]
[1753859144214,0.14698389,3836.9,3836.8,5.6786]
[1753859144524,0.39072579,3836.9,3836.8,8.28493861]
[1753859147125,0.14698389,3836.9,3836.8,8.28493861]
[1753859150437,0.14698389,3836.9,3836.8,11.28493861]
[1753859151131,1e-08,3836.9,3836.8,11.28493861]
[1753859152645,1e-08,3836.9,3836.8,11.41533861]
[1753859157047,1e-08,3836.9,3836.8,11.96533861]
[1753859157255,1e-08,3836.9,3836.8,11.41533861]
[1753859157565,1e-08,3836.9,3836.8,11.79224794]
[1753859157782,1.0,3837.4,3836.8,11.79224794]
[1753859157783,1e-08,3837.4,3837.2,5.60606692]
[1753859157975,1e-08,3837.4,3837.3,15.06898487]
[1753859158133,1e-08,3837.4,3837.3,16.12598487]
[1753859158333,1e-08,3837.4,3837.3,11.435699]
[1753859158766,1e-08,3837.4,3837.3,11.436699]
[1753859159863,1e-08,3837.4,3837.3,11.435699]
[1753859161494,1e-08,3837.9,3837.7,2.60572738]
[1753859161645,1e-08,3837.9,3837.8,15.10034536]
[1753859161969,1e-08,3837.9,3837.8,16.18984536]
[1753859163150,1e-08,3837.9,3837.8,15.70204536]
[1753859164075,1e-08,3837.9,3837.8,16.18984536]
[1753859164584,1e-08,3837.9,3837.8,15.70204536]
[1753859164960,1e-08,3837.9,3837.8,6.55445949]
[1753859165310,0.48270001,3837.9,3837.8,9.72105949]
[1753859167566,0.48270001,3837.9,3837.8,6.72105949]
[1753859167766,0.92980001,3837.9,3837.8,6.72105949]
[1753859167968,0.92980001,3837.9,3837.8,2.73605949]
[1753859168160,0.92980001,3837.9,3837.8,6.72005949]
[1753859170079,0.48270001,3837.9,3837.8,6.72005949]
[1753859170283,0.92980001,3837.9,3837.8,6.72005949]
[1753859170602,0.48270001,3837.9,3837.8,6.72005949]
[1753859170768,0.48270001,3837.9,3837.8,9.80296721]
[1753859171990,1e-08,3837.9,3837.8,9.80296721]
[1753859174000,1e-08,3837.9,3837.8,10.56606721]
[1753859174312,0.48270001,3837.9,3837.8,10.56606721]
[1753859174783,0.48270001,3837.9,3837.8,9.80296721]
[1753859176003,0.48270001,3837.9,3837.8,9.80096721]
[1753859177315,0.48270001,3837.9,3837.8,6.71905949]
[1753859178201,0.92980001,3837.9,3837.8,6.71905949]
[1753859178573,0.48270001,3837.9,3837.8,6.71905949]
[1753859181002,1e-08,3837.9,3837.8,6.71905949]
[1753859181698,1e-08,3837.9,3837.8,7.19035949]
[1753859183410,1e-08,3837.9,3837.8,8.00595949]
[1753859183823,1e-08,3837.9,3837.8,11.08886721]
[1753859184581,1e-08,3837.9,3837.8,15.31886721]
[1753859184786,0.48270001,3837.9,3837.8,14.03196721]
[1753859185193,1e-08,3837.9,3837.8,14.03196721]
[1753859185392,1e-08,3837.9,3837.8,14.50326721]
[1753859185799,1e-08,3837.9,3837.8,14.50426721]
[1753859186187,0.00200001,3837.9,3837.8,14.50426721]
[1753859187225,0.00200001,3837.9,3837.8,14.99206721]
[1753859187520,0.00200001,3837.9,3837.8,14.50426721]
[1753859187698,0.00200001,3837.9,3837.8,14.52076721]
[1753859187895,0.00200001,3837.9,3837.8,14.03296721]
[1753859188820,0.00200001,3837.9,3837.8,14.50426721]
[1753859189817,0.00200001,3837.9,3837.8,10.76206721]
[1753859190926,1e-08,3837.9,3837.8,13.76206721]
[1753859191111,1e-08,3837.9,3837.8,14.54126721]
[1753859192426,1e-08,3837.9,3837.8,14.05346721]
[1753859192633,1e-08,3837.9,3837.8,13.58216721]
[1753859193521,1e-08,3837.9,3837.8,14.01006721]
[1753859194317,1e-08,3837.9,3837.8,13.58216721]
[1753859194492,1e-08,3837.9,3837.8,9.59916721]
[1753859194700,0.45340001,3837.9,3837.8,12.80296721]
[1753859195598,0.45340001,3837.9,3837.8,17.03296721]
[1753859196020,0.45340001,3837.9,3837.8,13.04996721]
[1753859196212,0.45340001,3837.9,3837.8,17.03296721]
[1753859201121,0.91890001,3837.9,3837.8,10.95005949]
[1753859201505,0.91890001,3837.9,3837.8,6.72005949]
[1753859202310,0.45340001,3837.9,3837.8,6.72005949]
[1753859202749,1e-08,3837.9,3837.8,7.14795949]
[1753859205263,1e-08,3837.9,3837.8,7.09696882]
[1753859205467,1e-08,3837.9,3837.8,7.14795949]
[1753859207332,1e-08,3837.9,3837.8,11.37105949]
[1753859207568,1e-08,3837.9,3837.8,15.60105949]
[1753859215292,1e-08,3837.9,3837.8,15.14415949]
[1753859216983,1e-08,3837.9,3837.8,15.13515949]
[1753859217385,1e-08,3837.9,3837.8,15.59205949]
[1753859217917,1e-08,3837.9,3837.8,15.13515949]
[1753859220746,1e-08,3837.9,3837.8,13.81616721]
[1753859220947,0.47380001,3837.9,3837.8,17.02196721]
[1753859221513,1e-08,3837.9,3837.8,17.46676721]
[1753859221799,0.47380001,3837.9,3837.8,17.02196721]
[1753859221997,1e-08,3837.9,3837.8,17.02196721]
[1753859222144,1e-08,3837.9,3837.8,17.46676721]
[1753859222347,1e-08,3837.9,3837.8,13.93905949]
[1753859222574,1e-08,3837.9,3837.8,17.02196721]
[1753859222778,0.47380001,3837.9,3837.8,17.02196721]
[1753859224391,0.90210001,3837.9,3837.8,13.93705949]
[1753859224688,0.47380001,3837.9,3837.8,13.93705949]
[1753859224891,0.90210001,3837.9,3837.8,13.93705949]
[1753859225189,0.90210001,3837.9,3837.8,6.70705949]
[1753859225893,0.90210001,3837.9,3837.8,2.73705949]
[1753859226094,1.87398001,3837.9,3837.8,0.001]
[1753859226293,1.70440001,3837.9,3837.8,3.972]
[1753859226753,1.70440001,3837.9,3837.8,6.57765949]
[1753859226959,1.70440001,3837.9,3837.8,3.972]
[1753859229180,1.94859302,3837.9,3837.8,3.972]
[1753859230094,1.94859302,3837.9,3837.8,6.57765949]
[1753859230391,1.70440001,3837.9,3837.8,6.57765949]
[1753859230809,1.70440001,3837.9,3837.8,3.972]
[1753859230989,1.88788001,3837.9,3837.8,6.57765949]
[1753859231569,1e-08,3837.9,3837.8,6.57765949]
[1753859231785,1e-08,3837.9,3837.8,7.15285949]
[1753859232907,1e-08,3837.9,3837.8,6.70805949]
[1753859233110,1e-08,3837.9,3837.8,7.15285949]
[1753859235892,1e-08,3837.9,3837.8,6.70805949]
[1753859236370,1e-08,3837.9,3837.8,7.15285949]
[1753859238184,1e-08,3837.9,3837.8,6.70805949]
[1753859238682,0.47380001,3837.9,3837.8,6.70805949]
[1753859240017,1.25760001,3837.9,3837.8,6.70505949]
[1753859240544,1.68590001,3837.9,3837.8,6.70505949]
[1753859240702,1.25760001,3837.9,3837.8,6.70505949]
[1753859240898,1e-08,3837.9,3837.8,10.14985949]
[1753859241112,1e-08,3837.9,3837.8,10.98005949]
[1753859243932,1e-08,3837.9,3837.8,6.56725949]
[1753859244111,1e-08,3837.9,3837.8,6.70805949]
[1753859244291,0.47380001,3837.9,3837.8,6.70805949]
[1753859244633,0.90210001,3837.9,3837.8,6.70805949]
[1753859244790,1.07032001,3837.9,3837.8,6.71005949]
[1753859244994,1.07032001,3837.9,3837.8,6.57965949]
[1753859245530,0.47380001,3837.9,3837.8,6.57965949]
[1753859246725,1e-08,3837.9,3837.8,6.57965949]
[1753859247512,0.47380001,3837.9,3837.8,6.57965949]
[1753859248548,1e-08,3837.9,3837.8,6.57965949]
[1753859249511,1e-08,3837.9,3837.8,7.02445949]
[1753859250125,1e-08,3837.9,3837.8,7.36535949]
[1753859250344,1e-08,3837.9,3837.8,10.89306721]
[1753859251932,1e-08,3837.9,3837.8,10.10936721]
[1753859252231,1e-08,3837.9,3837.8,9.66456721]
[1753859253030,0.46860001,3837.9,3837.8,6.58165949]
[1753859253338,0.46860001,3837.9,3837.8,2.60665949]
[1753859253538,1e-08,3837.9,3837.8,9.66356721]
[1753859253742,1e-08,3837.9,3837.8,10.09936721]
[1753859254129,1e-08,3837.9,3837.8,11.38596721]
[1753859254526,1e-08,3837.9,3837.8,14.38596721]
[1753859255870,1e-08,3837.9,3837.8,13.90366721]
[1753859256076,1e-08,3837.9,3837.8,12.66356721]
[1753859256449,0.46860001,3837.9,3837.8,12.66356721]
[1753859256660,0.46860001,3837.9,3837.8,9.58065949]
[1753859257056,0.46860001,3837.9,3837.8,6.58065949]
[1753859259361,1e-08,3837.9,3837.8,9.66656721]
[1753859259678,1e-08,3837.9,3837.8,10.10236721]
[1753859260041,1e-08,3837.9,3837.8,9.66656721]
[1753859260240,1e-08,3837.9,3837.8,10.10236721]
[1753859260447,1e-08,3837.9,3837.8,14.37026721]
[1753859262814,1e-08,3837.9,3837.8,13.88796721]
[1753859262956,0.46860001,3837.9,3837.8,12.66656721]
[1753859263382,0.46860001,3837.9,3837.8,9.58365949]
[1753859263552,0.46860001,3837.9,3837.8,12.66656721]
[1753859263864,1e-08,3837.9,3837.8,12.66656721]
[1753859264068,0.46860001,3837.9,3837.8,9.58365949]
[1753859265158,0.46860001,3837.9,3837.8,12.66656721]
[1753859267400,1e-08,3837.9,3837.8,12.66656721]
[1753859267560,1e-08,3837.9,3837.8,13.10236721]
[1753859268394,1e-08,3837.9,3837.8,12.66656721]
[1753859268691,1e-08,3837.9,3837.8,13.10236721]
[1753859268890,1e-08,3837.9,3837.8,12.66656721]
[1753859269054,0.46860001,3837.9,3837.8,9.58365949]
[1753859270195,1e-08,3837.9,3837.8,9.58365949]
[1753859270393,1e-08,3837.9,3837.8,10.01945949]
[1753859272895,1e-08,3837.9,3837.8,9.58365949]
[1753859273207,0.46860001,3837.9,3837.8,9.58365949]
[1753859276011,1e-08,3837.9,3837.8,9.58365949]
[1753859276523,0.46860001,3837.9,3837.8,9.57965949]
[1753859277116,1e-08,3837.9,3837.8,10.01545949]
[1753859279607,1e-08,3837.9,3837.8,9.57965949]
[1753859279805,0.46860001,3837.9,3837.8,9.57965949]
[1753859280619,0.46860001,3837.9,3837.8,5.60665949]
[1753859280824,0.46860001,3837.9,3837.8,9.57665949]
[1753859281642,1.22580001,3837.9,3837.8,9.57665949]
[1753859281934,1.92155403,3837.9,3837.8,9.57665949]
[1753859282435,1.22580001,3837.9,3837.8,9.57665949]
[1753859284160,1.22580001,3837.9,3837.8,2.60665949]
[1753859284445,2.08926717,3837.9,3837.8,6.57565949]
[1753859284597,1.47025717,3837.9,3837.8,6.57565949]
[1753859284801,1.22580001,3837.9,3837.8,6.57565949]
[1753859285139,0.71885048,3837.9,3837.8,6.57565949]
[1753859288455,0.24445048,3837.9,3837.8,6.57565949]
[1753859288659,1.54085048,3837.9,3837.8,6.57565949]
[1753859294640,2.19136553,3837.9,3837.8,3.968]
[1753859295336,1.73994765,3837.9,3837.8,3.968]
[1753859296280,1.73994765,3837.9,3837.8,6.57365949]
[1753859296675,1.73994765,3837.9,3837.8,3.968]
[1753859297242,1.73994765,3837.9,3837.8,6.57365949]
[1753859297977,1.5407326,3837.9,3837.8,6.57365949]
[1753859298164,0.7187326,3837.9,3837.8,6.57365949]
[1753859302672,0.2443326,3837.9,3837.8,6.57365949]
[1753859303056,0.7187326,3837.9,3837.8,6.57365949]
[1753859303376,0.2443326,3837.9,3837.8,6.57365949]
[1753859303563,0.24424485,3837.9,3837.8,10.08936721]
[1753859303776,0.24424485,3837.9,3837.8,10.57816721]
[1753859303973,0.24424485,3837.9,3837.8,10.70856721]
[1753859304145,1e-08,3837.9,3837.8,10.70856721]
[1753859304746,0.24424485,3837.9,3837.8,10.70856721]
[1753859304948,1e-08,3837.9,3837.8,10.70856721]
[1753859305447,1e-08,3837.9,3837.8,11.52836721]
[1753859306457,0.24425489,3837.9,3837.8,14.52836721]
[1753859306655,1e-08,3837.9,3837.8,14.52836721]
[1753859312788,1e-08,3837.9,3837.8,14.51536721]
[1753859313848,1e-08,3837.9,3837.8,14.03956721]
[1753859314073,1e-08,3837.9,3837.8,6.55685949]
[1753859314292,0.47940001,3837.9,3837.8,9.69905949]
[1753859314453,1e-08,3837.9,3837.8,10.63385949]
[1753859315261,1e-08,3837.9,3837.8,11.43015949]
[1753859317891,1e-08,3837.9,3837.8,10.95435949]
[1753859320098,0.47940001,3837.9,3837.8,9.69905949]
[1753859320893,0.47940001,3837.9,3837.8,5.73705949]
[1753859321101,0.47940001,3837.9,3837.8,6.70005949]
[1753859321390,0.93730001,3837.9,3837.8,6.70005949]
[1753859321597,0.47940001,3837.9,3837.8,6.70005949]
[1753859321893,0.93730001,3837.9,3837.8,6.70005949]
[1753859322106,0.93730001,3837.9,3837.8,2.73705949]
[1753859322308,1.11047001,3837.9,3837.8,0.1314]
[1753859322603,1.11047001,3837.9,3837.8,3.964]
[1753859323009,1.86127001,3837.9,3837.8,3.964]
[1753859323673,1.86127001,3837.9,3837.8,0.001]
[1753859323986,2.23568278,3837.9,3837.8,3.965]
[1753859325893,2.10528278,3837.9,3837.8,3.965]
[1753859326097,0.99481278,3837.9,3837.8,3.965]
[1753859326305,0.72341278,3837.9,3837.8,4.0954]
[1753859328567,0.24401278,3837.9,3837.8,4.0954]
[1753859328767,0.47940001,3837.9,3837.8,4.0954]
[1753859328976,0.87568406,3837.9,3837.8,3.965]
[1753859329305,0.87568406,3837.9,3837.8,6.57065949]
[1753859329600,0.87568406,3837.9,3837.8,3.965]
[1753859329994,0.87568406,3837.9,3837.8,6.57065949]
[1753859330182,0.87568406,3837.9,3837.8,3.965]
[1753859330183,0.72341278,3837.9,3837.8,3.965]
[1753859331801,1.18131278,3837.9,3837.8,3.965]
[1753859332901,1.18131278,3837.9,3837.8,0.001]
[1753859333102,1.18131278,3837.9,3837.8,3.965]
[1753859334689,0.72341278,3837.9,3837.8,3.965]
[1753859334882,0.98451406,3837.9,3837.8,3.965]
[1753859336216,1.53451406,3837.9,3837.8,0.001]
[1753859336422,2.12261801,3837.9,3837.8,3.964]
[1753859336780,2.12261801,3837.9,3837.8,0.001]
[1753859337115,2.92711801,3837.9,3837.8,3.964]
[1753859338940,2.92711801,3837.9,3837.8,0.001]
[1753859339308,5.5327096,3837.9,3837.8,0.001]
[1753859340391,8.5327096,3837.9,3837.8,0.001]
[1753859342216,8.67895243,3837.9,3837.8,0.001]
[1753859342732,8.67895243,3837.9,3837.4,0.001]
[1753859342733,3.92356319,3837.5,3837.4,0.001]
[1753859342929,3.92356319,3837.5,3836.1,0.04]
[1753859342930,0.55,3836.2,3836.1,0.04]
[1753859343153,0.6804,3836.2,3836.1,0.04]
[1753859343334,4.05484625,3836.2,3836.1,0.04]
[1753859343631,7.98924625,3836.2,3836.1,0.04]
[1753859343806,9.55315125,3836.2,3836.1,0.04]
[1753859344746,9.79669857,3836.2,3836.1,0.04]
[1753859344945,9.55315125,3836.2,3836.1,0.04]
[1753859346043,10.917405,3836.2,3836.1,0.04]
[1753859346249,6.946405,3836.2,3836.1,0.04]
[1753859346416,6.497705,3836.2,3836.1,0.04]
[1753859347557,5.12982558,3836.2,3836.1,0.04]